fUST/lending_fUST_20250806
["ID","MTS","AMOUNT","RATE_DAILY","PERIOD"]
[377500715,1754430659983,-2207.01,0.00028493,2]
[377500716,1754430659992,-460.0,0.00028493,2]
[377500717,1754430660002,-460.0,0.00028493,2]
[377500718,1754430660012,-460.0,0.00028493,2]
[377500719,1754430660022,-460.0,0.00028493,2]
[377500720,1754430660032,-460.0,0.00028493,2]
[377500721,1754430660043,-483.53797526,0.00028493,2]
[377500722,1754430660054,-874.06,0.00028493,2]
[377500723,1754430660065,-460.0,0.00028493,2]
[377500724,1754430660079,-464.26118888,0.00028493,2]
[377500725,1754430660089,-577.33608087,0.00028493,2]
[377500726,1754430660099,-460.0,0.00028493,2]
[377500727,1754430660109,-661.57,0.00028493,2]
[377500728,1754430660119,-460.0,0.00028493,2]
[377500729,1754430660128,-460.0,0.00028493,2]
[377500730,1754430660138,-460.0,0.00028493,2]
[377500731,1754430660148,-460.0,0.00028493,2]
[377500732,1754430660157,-695.34,0.00028493,2]
[377500733,1754430660167,-601.13,0.00028493,2]
[377500734,1754430660177,-858.9,0.00028493,2]
[377500735,1754430660187,-460.0,0.00028493,2]
[377500736,1754430660197,-530.73,0.00028493,2]
[377500737,1754430660207,-460.0,0.00028493,2]
[377500738,1754430660217,-460.0,0.00028493,2]
[377500739,1754430660227,-460.0,0.00028493,2]
[377500740,1754430660237,-753.11,0.00028493,2]
[377500741,1754430660247,-460.0,0.00028493,2]
[377500742,1754430660256,-708.2,0.00028493,2]
[377500743,1754430660265,-542.88,0.00028493,2]
[377500744,1754430660275,-460.0,0.00028493,2]
[377500745,1754430660285,-577.76,0.00028493,2]
[377500746,1754430660294,-460.0,0.00028493,2]
[377500747,1754430660304,-1665.23,0.00028493,2]
[377500748,1754430660315,-460.0,0.00028493,2]
[377500749,1754430660325,-1257.42,0.00028493,2]
[377500750,1754430660335,-464.2556027,0.00028493,2]
[377500751,1754430660344,-460.0,0.00028493,2]
[377500752,1754430660354,-460.0,0.00028493,2]
[377500753,1754430660364,-460.0,0.00028493,2]
[377500754,1754430660374,-460.0,0.00028493,2]
[377500755,1754430660383,-1323.72,0.00028493,2]
[377500756,1754430660394,-1507.31,0.00028493,2]
[377500757,1754430660403,-843.26,0.00028493,2]
[377500758,1754430660416,-871.76,0.00028493,2]
[377500759,1754430660427,-460.0,0.00028493,2]
[377500760,1754430660436,-466.61584917,0.00028493,2]
[377500761,1754430660446,-460.0,0.00028493,2]
[377500762,1754430660455,-460.0,0.00028493,2]
[377500763,1754430660465,-1612.73,0.00028493,2]
[377500764,1754430660475,-460.0,0.00028493,2]
[377500765,1754430660484,-460.0,0.00028493,2]
[377500766,1754430660493,-460.0,0.00028493,2]
[377500767,1754430660503,-1161.99,0.00028493,2]
[377500768,1754430660513,-896.21,0.00028493,2]
[377500769,1754430660523,-718.5,0.00028493,2]
[377500770,1754430660534,-460.0,0.00028493,2]
[377500771,1754430660544,-460.0,0.00028493,2]
[377500772,1754430660553,-460.0,0.00028493,2]
[377500773,1754430660564,-2671.58,0.00028493,2]
[377500774,1754430660573,-460.0,0.00028493,2]
[377500775,1754430660583,-181.79,0.00028503,15]
[377500776,1754430660593,-160.0,0.00028508,2]
[377500777,1754430660602,-150.47853833,0.00028521,5]
[377500778,1754430660612,-181.79,0.00028603,15]
[377500779,1754430660622,-2182.02609596,0.00028667,2]
[377500780,1754430660636,-181.79,0.00028703,15]
[377500781,1754430660645,-460.0,0.00028767,2]
[377500782,1754430660655,-460.0,0.00028767,2]
[377500783,1754430660664,-460.0,0.00028767,2]
[377500784,1754430660674,-460.0,0.00028767,2]
[377500785,1754430660684,-472.87804332,0.00028767,2]
[377500786,1754430660693,-1842.06,0.00028767,2]
[377500787,1754430660704,-460.0,0.00028767,2]
[377500788,1754430660715,-516.11,0.00028767,2]
[377500789,1754430660725,-460.0,0.00028767,2]
[377500790,1754430660735,-58465.94,0.00028767,2]
[377500791,1754430660745,-460.0,0.00028767,2]
[377500792,1754430660755,-460.0,0.00028767,2]
[377500793,1754430660766,-631.25,0.00028767,2]
[377500794,1754430660777,-460.0,0.00028767,2]
[377500795,1754430660787,-460.0,0.00028767,2]
[377500796,1754430660797,-460.0,0.00028767,2]
[377500797,1754430660809,-460.0,0.00028767,2]
[377500798,1754430660826,-469.33498672,0.00028767,2]
[377500799,1754430660837,-460.0,0.00028767,2]
[377500800,1754430660847,-460.0,0.00028767,2]
[377500801,1754430660857,-460.0,0.00028767,2]
[377500802,1754430660868,-347.00643513,0.00028767,2]
[377500803,1754430660879,-468.13077803,0.00028767,2]
[377500804,1754430660889,-935.97,0.00028767,2]
[377500805,1754430660899,-276.064142,0.00028767,2]
[377500806,1754430660909,-587.3,0.00028767,2]
[377500807,1754430660920,-460.0,0.00028767,2]
[377500808,1754430660930,-460.0,0.00028767,2]
[377500809,1754430660940,-460.0,0.00028767,2]
[377500810,1754430660951,-1112.51,0.00028767,2]
[377500811,1754430660961,-1373.77,0.00028767,2]
[377500812,1754430660971,-460.0,0.00028767,2]
[377500813,1754430660982,-871.36,0.00028767,2]
[377500814,1754430660992,-460.0,0.00028767,2]
[377500815,1754430661002,-460.0,0.00028767,2]
[377500816,1754430661012,-1779.37,0.00028767,2]
[377500817,1754430661023,-1545.29,0.00028767,2]
[377500818,1754430661037,-460.0,0.00028767,2]
[377500819,1754430661047,-460.0,0.00028767,2]
[377500820,1754430661059,-460.0,0.00028767,2]
[377500821,1754430661073,-460.0,0.00028767,2]
[377500822,1754430661083,-460.0,0.00028767,2]
[377500823,1754430661095,-156.7364319,0.00028767,2]
[377500824,1754430661107,-460.0,0.00028767,2]
[377500825,1754430661117,-460.0,0.00028767,2]
[377500826,1754430661127,-587.7216217,0.00028767,2]
[377500827,1754430661136,-460.0,0.00028767,2]
[377500828,1754430661147,-1537.8,0.00028767,2]
[377500829,1754430661157,-582.89,0.00028767,2]
[377500830,1754430661167,-478.5,0.00028767,2]
[377500831,1754430661177,-460.0,0.00028767,2]
[377500832,1754430661187,-497.24,0.00028767,2]
[377500833,1754430661197,-460.0,0.00028767,2]
[377500834,1754430661207,-460.0,0.00028767,2]
[377500835,1754430661217,-460.0,0.00028767,2]
[377500836,1754430661228,-460.0,0.00028767,2]
[377500837,1754430661239,-460.0,0.00028767,2]
[377500838,1754430661249,-460.0,0.00028767,2]
[377500839,1754430661259,-460.0,0.00028767,2]
[377500840,1754430661269,-5939.81,0.00028767,2]
[377500841,1754430661279,-460.0,0.00028767,2]
[377500842,1754430661289,-1094.68,0.00028767,2]
[377500843,1754430661298,-460.0,0.00028767,2]
[377500844,1754430661309,-460.0,0.00028767,2]
[377500845,1754430661321,-460.0,0.00028767,2]
[377500846,1754430661331,-460.0,0.00028767,2]
[377500847,1754430661342,-460.0,0.00028767,2]
[377500848,1754430661352,-460.0,0.00028767,2]
[377500849,1754430661362,-460.0,0.00028767,2]
[377500850,1754430661372,-460.0,0.00028767,2]
[377500851,1754430661382,-493.69,0.00028767,2]
[377500852,1754430661392,-460.0,0.00028767,2]
[377500853,1754430661403,-460.0,0.00028767,2]
[377500854,1754430661413,-460.0,0.00028767,2]
[377500855,1754430661423,-475.27677854,0.00028767,2]
[377500856,1754430661433,-1093.0,0.00028767,2]
[377500857,1754430661443,-460.0,0.00028767,2]
[377500858,1754430661452,-1269.04,0.00028767,2]
[377500859,1754430661462,-460.0,0.00028767,2]
[377500860,1754430661472,-460.0,0.00028767,2]
[377500861,1754430661481,-633.84,0.00028767,2]
[377500862,1754430661491,-460.0,0.00028767,2]
[377500863,1754430661501,-460.0,0.00028767,2]
[377500864,1754430661510,-496.46,0.00028767,2]
[377500865,1754430661521,-1558.16,0.00028767,2]
[377500866,1754430661531,-1070.81,0.00028767,2]
[377500867,1754430661542,-460.0,0.00028767,2]
[377500868,1754430661552,-460.0,0.00028767,2]
[377500869,1754430661563,-460.0,0.00028767,2]
[377500870,1754430661573,-460.0,0.00028767,2]
[377500871,1754430661583,-460.0,0.00028767,2]
[377500872,1754430661593,-836.37,0.00028767,2]
[377500873,1754430661603,-460.0,0.00028767,2]
[377500874,1754430661613,-460.0,0.00028767,2]
[377500875,1754430661623,-1359.86,0.00028767,2]
[377500876,1754430661632,-5050.93,0.00028767,2]
[377500877,1754430661642,-2094.78,0.00028767,2]
[377500878,1754430661652,-1722.74,0.00028767,2]
[377500879,1754430661662,-460.0,0.00028767,2]
[377500880,1754430661671,-460.0,0.00028767,2]
[377500881,1754430661681,-460.0,0.00028767,2]
[377500882,1754430661691,-460.0,0.00028767,2]
[377500883,1754430661701,-1026.08,0.00028767,2]
[377500884,1754430661711,-460.0,0.00028767,2]
[377500885,1754430661721,-460.0,0.00028767,2]
[377500886,1754430661731,-467.53378666,0.00028767,2]
[377500887,1754430661742,-579.16,0.00028767,2]
[377500888,1754430661751,-460.0,0.00028767,2]
[377500889,1754430661762,-889.95,0.00028767,2]
[377500890,1754430661772,-1222.34,0.00028767,2]
[377500891,1754430661783,-940.82,0.00028767,2]
[377500892,1754430661793,-500.0,0.00028767,2]
[377500893,1754430661803,-460.0,0.00028767,2]
[377500894,1754430661814,-4422.38,0.00028767,2]
[377500895,1754430661824,-489.74,0.00028767,2]
[377500896,1754430661834,-500.0,0.00028767,2]
[377500897,1754430661844,-2207.01,0.00028767,2]
[377500898,1754430661855,-460.0,0.00028767,2]
[377500899,1754430661864,-460.0,0.00028767,2]
[377500900,1754430661875,-460.0,0.00028767,2]
[377500901,1754430661884,-460.0,0.00028767,2]
[377500902,1754430661894,-460.0,0.00028767,2]
[377500903,1754430661904,-874.06,0.00028767,2]
[377500904,1754430661915,-307.7721266,0.00028767,2]
[377500905,1754430661925,-661.57,0.00028767,2]
[377500906,1754430661934,-460.0,0.00028767,2]
[377500907,1754430661944,-460.0,0.00028767,2]
[377500908,1754430661954,-460.0,0.00028767,2]
[377500909,1754430661964,-460.0,0.00028767,2]
[377500910,1754430661974,-695.34,0.00028767,2]
[377500911,1754430661986,-858.9,0.00028767,2]
[377500912,1754430662007,-460.0,0.00028767,2]
[377500913,1754430662018,-601.13,0.00028767,2]
[377500914,1754430662028,-530.73,0.00028767,2]
[377500915,1754430662039,-460.0,0.00028767,2]
[377500916,1754430662049,-460.0,0.00028767,2]
[377500917,1754430662061,-460.0,0.00028767,2]
[377500918,1754430662077,-753.11,0.00028767,2]
[377500919,1754430662087,-460.0,0.00028767,2]
[377500920,1754430662097,-708.2,0.00028767,2]
[377500921,1754430662108,-542.88,0.00028767,2]
[377500922,1754430662119,-460.0,0.00028767,2]
[377500923,1754430662129,-577.76,0.00028767,2]
[377500924,1754430662139,-460.0,0.00028767,2]
[377500925,1754430662150,-1665.23,0.00028767,2]
[377500926,1754430662160,-460.0,0.00028767,2]
[377500927,1754430662170,-1257.42,0.00028767,2]
[377500928,1754430662180,-460.0,0.00028767,2]
[377500929,1754430662190,-460.0,0.00028767,2]
[377500930,1754430662200,-460.0,0.00028767,2]
[377500931,1754430662210,-1507.31,0.00028767,2]
[377500932,1754430662220,-843.26,0.00028767,2]
[377500933,1754430662229,-871.76,0.00028767,2]
[377500934,1754430662239,-1323.72,0.00028767,2]
[377500935,1754430662249,-464.88986533,0.00028767,2]
[377500936,1754430662259,-460.0,0.00028767,2]
[377500937,1754430662268,-460.0,0.00028767,2]
[377500938,1754430662278,-1612.73,0.00028767,2]
[377500939,1754430662288,-460.0,0.00028767,2]
[377500940,1754430662298,-460.0,0.00028767,2]
[377500941,1754430662308,-460.0,0.00028767,2]
[377500942,1754430662320,-1161.99,0.00028767,2]
[377500943,1754430662330,-896.21,0.00028767,2]
[377500944,1754430662340,-718.5,0.00028767,2]
[377500945,1754430662350,-460.0,0.00028767,2]
[377500946,1754430662360,-460.0,0.00028767,2]
[377500947,1754430662369,-460.0,0.00028767,2]
[377500948,1754430662379,-2671.58,0.00028767,2]
[377500949,1754430662390,-466.27022632,0.00028767,2]
[377500950,1754430662400,-1500.0,0.00028768,2]
[377500951,1754430662410,-1005.17341474,0.00028768,5]
[377500952,1754430662420,-150.83960042,0.00028768,5]
[377500953,1754430662431,-181.79,0.00028803,15]
[377500954,1754430662445,-303.505589,0.00028892,2]
[377500955,1754430662456,-181.79,0.00028903,15]
[377500956,1754430662467,-312.16666667,0.00029,10]
[377500957,1754430662478,-527.3554621,0.00029,10]
[377500958,1754430662489,-181.79,0.00029003,15]
[377500959,1754430662500,-13451.60231847,0.00029008,11]
[377500960,1754430662511,-1643.90803113,0.00029016,2]
[377500961,1754430662521,-2000.0,0.00029016,5]
[377500962,1754430662532,-161.49,0.00029039,30]
[377500963,1754430662542,-460.0,0.00029041,2]
[377500964,1754430662553,-460.0,0.00029041,2]
[377500965,1754430662563,-460.0,0.00029041,2]
[377500966,1754430662576,-1842.06,0.00029041,2]
[377500967,1754430662587,-460.0,0.00029041,2]
[377500968,1754430662597,-469.96996308,0.00029041,2]
[377500969,1754430662607,-58465.94,0.00029041,2]
[377500970,1754430662617,-460.0,0.00029041,2]
[377500971,1754430662627,-460.0,0.00029041,2]
[377500972,1754430662637,-631.25,0.00029041,2]
[377500973,1754430662648,-460.0,0.00029041,2]
[377500974,1754430662658,-460.0,0.00029041,2]
[377500975,1754430662668,-460.0,0.00029041,2]
[377500976,1754430662678,-493.83594322,0.00029041,2]
[377500977,1754430662689,-465.29334933,0.00029041,2]
[377500978,1754430662699,-460.0,0.00029041,2]
[377500979,1754430662709,-935.97,0.00029041,2]
[377500980,1754430662720,-587.3,0.00029041,2]
[377500981,1754430662730,-460.0,0.00029041,2]
[377500982,1754430662740,-580.59052916,0.00029041,2]
[377500983,1754430662751,-460.0,0.00029041,2]
[377500984,1754430662761,-1112.51,0.00029041,2]
[377500985,1754430662771,-1373.77,0.00029041,2]
[377500986,1754430662782,-460.0,0.00029041,2]
[377500987,1754430662792,-871.36,0.00029041,2]
[377500988,1754430662803,-460.0,0.00029041,2]
[377500989,1754430662815,-460.0,0.00029041,2]
[377500990,1754430662825,-1779.37,0.00029041,2]
[377500991,1754430662835,-1545.29,0.00029041,2]
[377500992,1754430662846,-460.0,0.00029041,2]
[377500993,1754430662859,-460.0,0.00029041,2]
[377500994,1754430662869,-460.0,0.00029041,2]
[377500995,1754430662879,-460.0,0.00029041,2]
[377500996,1754430662889,-545.04204218,0.00029041,2]
[377500997,1754430662900,-210.64970632,0.00029041,2]
[377500998,1754430662910,-460.0,0.00029041,2]
[377500999,1754430662921,-460.0,0.00029041,2]
[377501000,1754430662931,-1537.8,0.00029041,2]
[377501001,1754430662942,-582.89,0.00029041,2]
[377501002,1754430662952,-478.5,0.00029041,2]
[377501003,1754430662963,-460.0,0.00029041,2]
[377501004,1754430662973,-497.24,0.00029041,2]
[377501005,1754430662983,-460.0,0.00029041,2]
[377501006,1754430662993,-460.0,0.00029041,2]
[377501007,1754430663003,-460.0,0.00029041,2]
[377501008,1754430663013,-460.0,0.00029041,2]
[377501009,1754430663023,-460.0,0.00029041,2]
[377501010,1754430663033,-460.0,0.00029041,2]
[377501011,1754430663043,-460.0,0.00029041,2]
[377501012,1754430663053,-5939.81,0.00029041,2]
[377501013,1754430663068,-460.0,0.00029041,2]
[377501014,1754430663079,-1094.68,0.00029041,2]
[377501015,1754430663090,-460.0,0.00029041,2]
[377501016,1754430663100,-460.0,0.00029041,2]
[377501017,1754430663112,-460.0,0.00029041,2]
[377501018,1754430663122,-384.79784766,0.00029041,2]
[377501019,1754430663133,-460.0,0.00029041,2]
[377501020,1754430663146,-460.0,0.00029041,2]
[377501021,1754430663158,-460.0,0.00029041,2]
[377501022,1754430663334,-493.69,0.00029041,2]
[377501023,1754430663345,-460.0,0.00029041,2]
[377501024,1754430663355,-460.0,0.00029041,2]
[377501025,1754430663364,-208.38750257,0.00029041,2]
[377501026,1754430663374,-1093.0,0.00029041,2]
[377501027,1754430663383,-460.0,0.00029041,2]
[377501028,1754430663393,-1269.04,0.00029041,2]
[377501029,1754430663402,-460.0,0.00029041,2]
[377501030,1754430663411,-227.17582309,0.00029041,2]
[377501031,1754430663420,-633.84,0.00029041,2]
[377501032,1754430663430,-460.0,0.00029041,2]
[377501033,1754430663439,-460.0,0.00029041,2]
[377501034,1754430663449,-496.46,0.00029041,2]
[377501035,1754430663459,-1558.16,0.00029041,2]
[377501036,1754430663468,-1070.81,0.00029041,2]
[377501037,1754430663478,-460.0,0.00029041,2]
[377501038,1754430663487,-460.0,0.00029041,2]
[377501039,1754430663497,-460.0,0.00029041,2]
[377501040,1754430663506,-460.0,0.00029041,2]
[377501041,1754430663516,-460.0,0.00029041,2]
[377501042,1754430663526,-836.37,0.00029041,2]
[377501043,1754430663536,-460.0,0.00029041,2]
[377501044,1754430663545,-317.07535462,0.00029041,2]
[377501045,1754430663555,-1359.86,0.00029041,2]
[377501046,1754430663564,-5050.93,0.00029041,2]
[377501047,1754430663575,-2094.78,0.00029041,2]
[377501048,1754430663585,-1722.74,0.00029041,2]
[377501049,1754430663595,-460.0,0.00029041,2]
[377501050,1754430663605,-368.85783368,0.00029041,2]
[377501051,1754430663615,-532.14197992,0.00029041,2]
[377501052,1754430663624,-460.0,0.00029041,2]
[377501053,1754430663634,-1026.08,0.00029041,2]
[377501054,1754430663643,-460.0,0.00029041,2]
[377501055,1754430663653,-460.0,0.00029041,2]
[377501056,1754430663663,-579.16,0.00029041,2]
[377501057,1754430663672,-460.0,0.00029041,2]
[377501058,1754430663683,-889.95,0.00029041,2]
[377501059,1754430663693,-1222.34,0.00029041,2]
[377501060,1754430663703,-940.82,0.00029041,2]
[377501061,1754430663715,-500.0,0.00029041,2]
[377501062,1754430663725,-460.0,0.00029041,2]
[377501063,1754430663736,-4422.38,0.00029041,2]
[377501064,1754430663748,-489.74,0.00029041,2]
[377501065,1754430663759,-500.0,0.00029041,2]
[377501066,1754430663770,-2207.01,0.00029041,2]
[377501067,1754430663780,-571.13,0.00029041,2]
[377501068,1754430663790,-555.40811804,0.00029041,2]
[377501069,1754430663800,-460.0,0.00029041,2]
[377501070,1754430663810,-460.0,0.00029041,2]
[377501071,1754430663822,-460.0,0.00029041,2]
[377501072,1754430663831,-874.06,0.00029041,2]
[377501073,1754430663841,-661.57,0.00029041,2]
[377501074,1754430663851,-460.0,0.00029041,2]
[377501075,1754430663862,-460.0,0.00029041,2]
[377501076,1754430663872,-460.0,0.00029041,2]
[377501077,1754430663882,-695.34,0.00029041,2]
[377501078,1754430663893,-858.9,0.00029041,2]
[377501079,1754430663902,-460.0,0.00029041,2]
[377501080,1754430663912,-601.13,0.00029041,2]
[377501081,1754430663921,-530.73,0.00029041,2]
[377501082,1754430663931,-460.0,0.00029041,2]
[377501083,1754430663940,-460.0,0.00029041,2]
[377501084,1754430663951,-460.0,0.00029041,2]
[377501085,1754430663962,-753.11,0.00029041,2]
[377501086,1754430663981,-460.0,0.00029041,2]
[377501087,1754430663991,-708.2,0.00029041,2]
[377501088,1754430663999,-542.88,0.00029041,2]
[377501089,1754430664009,-460.0,0.00029041,2]
[377501090,1754430664019,-577.76,0.00029041,2]
[377501091,1754430664028,-460.0,0.00029041,2]
[377501092,1754430664037,-1665.23,0.00029041,2]
[377501093,1754430664046,-460.0,0.00029041,2]
[377501094,1754430664056,-1257.42,0.00029041,2]
[377501095,1754430664065,-460.0,0.00029041,2]
[377501096,1754430664079,-460.0,0.00029041,2]
[377501097,1754430664088,-1507.31,0.00029041,2]
[377501098,1754430664097,-843.26,0.00029041,2]
[377501099,1754430664106,-871.76,0.00029041,2]
[377501100,1754430664115,-1323.72,0.00029041,2]
[377501101,1754430664125,-460.0,0.00029041,2]
[377501102,1754430664134,-460.0,0.00029041,2]
[377501103,1754430664144,-1612.73,0.00029041,2]
[377501104,1754430664158,-383.12478813,0.00029041,2]
[377501105,1754430664167,-460.0,0.00029041,2]
[377501106,1754430664177,-460.0,0.00029041,2]
[377501107,1754430664187,-1161.99,0.00029041,2]
[377501108,1754430664196,-896.21,0.00029041,2]
[377501109,1754430664206,-718.5,0.00029041,2]
[377501110,1754430664215,-460.0,0.00029041,2]
[377501111,1754430664225,-460.0,0.00029041,2]
[377501112,1754430664235,-460.0,0.00029041,2]
[377501113,1754430664245,-2671.58,0.00029041,2]
[377501114,1754430664254,-260.0,0.00029055,2]
[377501115,1754430664264,-500.0,0.00029068,5]
[377501116,1754430664273,-181.79,0.00029103,15]
[377501117,1754430664282,-151.0,0.00029164,2]
[377501118,1754430664292,-23009.51934145,0.00029164,2]
[377501119,1754430664302,-1000.0,0.000292,6]
[377501120,1754430664311,-181.79,0.00029203,15]
[377501121,1754430664323,-181.79,0.00029303,15]
[377501122,1754430664332,-2806.35296379,0.00029307,2]
[377501123,1754430664342,-460.0,0.00029315,2]
[377501124,1754430664352,-460.0,0.00029315,2]
[377501125,1754430664361,-1842.06,0.00029315,2]
[377501126,1754430664371,-460.0,0.00029315,2]
[377501127,1754430664380,-58465.94,0.00029315,2]
[377501128,1754430664390,-460.0,0.00029315,2]
[377501129,1754430664400,-460.0,0.00029315,2]
[377501130,1754430664410,-460.0,0.00029315,2]
[377501131,1754430664420,-631.25,0.00029315,2]
[377501132,1754430664429,-473.52161975,0.00029315,2]
[377501133,1754430664439,-460.0,0.00029315,2]
[377501134,1754430664453,-460.0,0.00029315,2]
[377501135,1754430664468,-935.97,0.00029315,2]
[377501136,1754430664478,-587.3,0.00029315,2]
[377501137,1754430664488,-460.0,0.00029315,2]
[377501138,1754430664498,-460.0,0.00029315,2]
[377501139,1754430664507,-1373.77,0.00029315,2]
[377501140,1754430664517,-1112.51,0.00029315,2]
[377501141,1754430664526,-460.0,0.00029315,2]
[377501142,1754430664536,-871.36,0.00029315,2]
[377501143,1754430664546,-460.0,0.00029315,2]
[377501144,1754430664556,-460.0,0.00029315,2]
[377501145,1754430664568,-1779.37,0.00029315,2]
[377501146,1754430664578,-1545.29,0.00029315,2]
[377501147,1754430664587,-460.0,0.00029315,2]
[377501148,1754430664599,-460.0,0.00029315,2]
[377501149,1754430664610,-460.0,0.00029315,2]
[377501150,1754430664620,-460.0,0.00029315,2]
[377501151,1754430664630,-460.0,0.00029315,2]
[377501152,1754430664639,-340.0,0.00029315,2]
[377501153,1754430664650,-1537.8,0.00029315,2]
[377501154,1754430664659,-582.89,0.00029315,2]
[377501155,1754430664669,-460.0,0.00029315,2]
[377501156,1754430664684,-478.5,0.00029315,2]
[377501157,1754430664699,-497.24,0.00029315,2]
[377501158,1754430664709,-460.0,0.00029315,2]
[377501159,1754430664720,-460.0,0.00029315,2]
[377501160,1754430664730,-598.6997287,0.00029315,2]
[377501161,1754430664740,-460.0,0.00029315,2]
[377501162,1754430664750,-460.0,0.00029315,2]
[377501163,1754430664761,-460.0,0.00029315,2]
[377501164,1754430664771,-460.0,0.00029315,2]
[377501165,1754430664781,-5939.81,0.00029315,2]
[377501166,1754430664791,-460.0,0.00029315,2]
[377501167,1754430664802,-1094.68,0.00029315,2]
[377501168,1754430664813,-460.0,0.00029315,2]
[377501169,1754430664825,-460.0,0.00029315,2]
[377501170,1754430664836,-451.45536678,0.00029315,2]
[377501171,1754430664846,-460.0,0.00029315,2]
[377501172,1754430664857,-460.0,0.00029315,2]
[377501173,1754430664868,-460.0,0.00029315,2]
[377501174,1754430664878,-493.69,0.00029315,2]
[377501175,1754430664888,-460.0,0.00029315,2]
[377501176,1754430664898,-460.0,0.00029315,2]
[377501177,1754430664908,-1093.0,0.00029315,2]
[377501178,1754430664919,-460.0,0.00029315,2]
[377501179,1754430664929,-1269.04,0.00029315,2]
[377501180,1754430664939,-460.0,0.00029315,2]
[377501181,1754430664949,-633.84,0.00029315,2]
[377501182,1754430664959,-460.0,0.00029315,2]
[377501183,1754430664969,-460.0,0.00029315,2]
[377501184,1754430664979,-496.46,0.00029315,2]
[377501185,1754430664989,-1558.16,0.00029315,2]
[377501186,1754430665000,-1070.81,0.00029315,2]
[377501187,1754430665010,-460.0,0.00029315,2]
[377501188,1754430665020,-460.0,0.00029315,2]
[377501189,1754430665030,-460.0,0.00029315,2]
[377501190,1754430665040,-460.0,0.00029315,2]
[377501191,1754430665050,-460.0,0.00029315,2]
[377501192,1754430665060,-836.37,0.00029315,2]
[377501193,1754430665072,-460.0,0.00029315,2]
[377501194,1754430665082,-1359.86,0.00029315,2]
[377501195,1754430665092,-5050.93,0.00029315,2]
[377501196,1754430665103,-2094.78,0.00029315,2]
[377501197,1754430665112,-460.0,0.00029315,2]
[377501198,1754430665122,-1722.74,0.00029315,2]
[377501199,1754430665133,-460.0,0.00029315,2]
[377501200,1754430665145,-1026.08,0.00029315,2]
[377501201,1754430665155,-384.51309034,0.00029315,2]
[377501202,1754430665165,-460.0,0.00029315,2]
[377501203,1754430665175,-579.16,0.00029315,2]
[377501204,1754430665186,-460.0,0.00029315,2]
[377501205,1754430665196,-889.95,0.00029315,2]
[377501206,1754430665206,-1222.34,0.00029315,2]
[377501207,1754430665215,-940.82,0.00029315,2]
[377501208,1754430665225,-500.0,0.00029315,2]
[377501209,1754430665235,-460.0,0.00029315,2]
[377501210,1754430665246,-4422.38,0.00029315,2]
[377501211,1754430665255,-489.74,0.00029315,2]
[377501212,1754430665265,-500.0,0.00029315,2]
[377501213,1754430665276,-2207.01,0.00029315,2]
[377501214,1754430665286,-460.0,0.00029315,2]